bitfinex-derivatives/quotes_SOLF0:USTF0_20250928
["timestamp","ask_amount","ask_price","bid_price","bid_amount"]
[1759041608759,8.0,201.47,201.41,1.73433474]
[1759041608961,8.0,201.47,201.39,19.29636128]
[1759041609157,1.73433474,201.46,201.39,17.56202654]
[1759041609359,8.0,201.45,201.39,17.56202654]
[1759041611760,8.0,201.45,201.39,13.09552654]
[1759041611966,8.0,201.45,201.41,7.84]
[1759041612161,4.4651,201.47,201.41,7.84]
[1759041613160,7.76,201.48,201.42,7.84]
[1759041613357,9.49433474,201.51,201.42,7.84]
[1759041614671,13.95853474,201.51,201.43,4.4656]
[1759041622477,9.49433474,201.51,201.44,12.3054]
[1759041623074,7.76,201.51,201.44,12.3054]
[1759041623584,12.2242,201.51,201.44,12.3054]
[1759041623783,7.59,201.5,201.44,12.3054]
[1759041629585,7.59,201.5,201.45,7.4]
[1759041629979,7.59,201.5,201.44,4.4654]
[1759041630179,7.59,201.5,201.44,11.8654]
[1759041630886,7.59,201.5,201.44,4.4654]
[1759041631389,4.4642,201.51,201.44,4.4654]
[1759041631579,7.59,201.5,201.44,4.4654]
[1759041631786,4.4642,201.51,201.44,4.4654]
[1759041631981,7.59,201.5,201.44,11.8654]
[1759041632681,7.59,201.5,201.45,7.4]
[1759041632884,12.0542,201.51,201.45,7.4]
[1759041633893,7.59,201.55,201.47,7.4]
[1759041634189,7.59,201.53,201.47,7.4]
[1759041636289,7.59,201.49,201.42,12.95552654]
[1759041636486,7.59,201.49,201.42,7.4]
[1759041636487,7.59,201.48,201.42,7.4]
[1759041637382,7.59,201.48,201.42,12.95552654]
[1759041637589,7.59,201.48,201.42,17.42142654]
[1759041638894,9.32433474,201.49,201.43,11.8657]
[1759041639100,7.59,201.5,201.43,7.4]
[1759041639487,7.59,201.5,201.44,5.55552654]
[1759041639992,9.32433474,201.51,201.45,7.4]
[1759041640480,7.59,201.51,201.45,7.4]
[1759041640686,7.59,201.51,201.45,11.8652]
[1759041640888,7.59,201.51,201.45,7.4]
[1759041641197,7.59,201.51,201.47,4.4648]
[1759041641798,7.59,201.51,201.48,7.4]
[1759041642191,7.59,201.57,201.48,4.4645]
[1759041642387,1.73433474,201.56,201.49,7.4]
[1759041642693,7.59,201.55,201.49,7.4]
[1759041643098,7.59,201.55,201.49,4.4643]
[1759041643394,7.59,201.56,201.49,11.8643]
[1759041644091,7.59,201.56,201.5,7.4]
[1759041644391,7.59,201.59,201.52,9.13433474]
[1759041644788,7.59,201.59,201.5,7.4]
[1759041644992,7.59,201.59,201.52,7.4]
[1759041645989,7.59,201.59,201.54,7.4]
[1759041646189,7.59,201.59,201.53,4.4635]
[1759041646190,7.59,201.59,201.53,6.19783474]
[1759041646598,361.28,201.65,201.54,7.4]
[1759041646599,1.73433474,201.63,201.54,7.4]
[1759041646800,7.59,201.63,201.56,7.4]
[1759041648193,7.59,201.63,201.57,4.4627]
[1759041648391,1.73433474,201.65,201.57,11.8627]
[1759041648705,7.59,201.64,201.58,7.4]
[1759041649297,9.32433474,201.64,201.58,22.0191378]
[1759041649498,7.59,201.61,201.54,53.16]
[1759041649892,7.59,201.61,201.54,9.13433474]
[1759041652307,7.59,201.64,201.55,4.463]
[1759041652503,7.59,201.64,201.56,9.13433474]
[1759041653497,1.73433474,201.63,201.54,14.87200019]
[1759041653799,7.96,201.62,201.54,7.71]
[1759041653992,7.96,201.65,201.58,7.71]
[1759041655096,7.96,201.65,201.59,7.71]
[1759041656002,7.96,201.65,201.59,9.44433474]
[1759041656510,9.69433474,201.65,201.57,1.73433474]
[1759041656797,9.69433474,201.65,201.57,9.44433474]
[1759041657002,9.69433474,201.65,201.57,13.90703474]
[1759041658406,9.69433474,201.65,201.58,4.4623]
[1759041658703,9.69433474,201.65,201.59,7.71]
[1759041658906,7.96,201.65,201.59,9.44433474]
[1759041659906,7.96,201.65,201.59,13.90643474]
[1759041660604,7.96,201.65,201.59,12.1721]
[1759041662403,7.96,201.65,201.59,7.71]
[1759041662607,7.96,201.65,201.57,12.1727]
[1759041663206,7.96,201.65,201.59,12.1722]
[1759041664706,7.96,201.68,201.61,7.71]
[1759041665705,7.96,201.68,201.62,4.4614]
[1759041665912,7.96,201.73,201.61,7.71]
[1759041666410,7.96,201.73,201.65,12.1709]
[1759041667110,7.96,201.73,201.65,7.71]
[1759041668214,7.96,201.73,201.65,12.1708]
[1759041668412,7.96,201.73,201.65,7.71]
[1759041669307,7.96,201.73,201.66,4.4605]
[1759041671523,7.96,201.73,201.67,7.34]
[1759041672513,2.7049519,201.78,201.66,2.7049519]
[1759041672514,7.1630519,201.78,201.66,2.7049519]
[1759041672720,7.7,201.77,201.67,7.34]
[1759041673723,7.7,201.77,201.68,4.4601]
[1759041673925,7.7,201.77,201.69,7.34]
[1759041676527,7.7,201.77,201.69,11.7998]
[1759041678529,12.1584,201.77,201.69,11.7998]
[1759041679926,7.7,201.77,201.7,4.4597]
[1759041680123,7.7,201.77,201.71,7.34]
[1759041681627,7.7,201.77,201.72,4.4594]
[1759041681825,7.7,201.77,201.73,7.34]
[1759041682029,7.7,201.77,201.72,4.4594]
[1759041682425,7.7,201.77,201.73,7.34]
[1759041683228,7.7,201.77,201.73,8.05]
[1759041684032,12.0177,201.8,201.73,8.05]
[1759041685335,4.458,201.79,201.73,8.05]
[1759041686829,12.018,201.79,201.73,8.05]
[1759041689437,7.56,201.79,201.73,8.05]
[1759041690839,12.018,201.79,201.73,8.05]
[1759041691239,4.4574,201.81,201.73,8.05]
[1759041692643,4.4574,201.81,201.74,4.4588]
[1759041692840,4.4574,201.81,201.75,8.05]
[1759041694136,7.56,201.82,201.75,27.55237546]
[1759041694335,7.56,201.82,201.73,8.05]
[1759041694835,7.56,201.82,201.75,8.05]
[1759041696640,7.56,201.82,201.75,12.5086]
[1759041697143,7.56,201.82,201.75,27.29377561]
[1759041698839,4.457,201.83,201.76,4.4584]
[1759041699040,4.457,201.83,201.77,8.05]
[1759041699739,4.4566,201.85,201.77,8.05]
[1759041699935,7.56,201.86,201.77,8.05]
[1759041700842,7.56,201.84,201.77,8.05]
[1759041701147,10.2649519,201.84,201.73,8.05]
[1759041702343,12.018,201.79,201.73,8.05]
[1759041703852,12.018,201.79,201.73,22.88865998]
[1759041704149,69.3318,201.83,201.73,8.05]
[1759041704150,7.56,201.76,201.73,8.05]
[1759041706548,7.56,201.75,201.68,4.124956]
[1759041706749,69.3318,201.83,201.68,7.727e-05]
[1759041706750,69.3727,201.71,201.68,7.727e-05]
[1759041706957,69.3727,201.71,201.63,8.36021546]
[1759041706958,4.461,201.65,201.54,13.60552654]
[1759041707157,7.56,201.64,201.57,8.05]
[1759041708158,2.7049519,201.67,201.57,8.05]
[1759041708455,7.56,201.68,201.57,8.05]
[1759041710357,4.4605,201.67,201.57,8.05]
[1759041710949,7.56,201.66,201.57,8.05]
[1759041711650,2.7049519,201.61,201.51,22.41552654]
[1759041711956,76.9982,201.52,201.44,5.55552654]
[1759041712157,12.0244,201.5,201.42,8.05]
[1759041712459,12.0244,201.5,201.38,8.36021546]
[1759041712460,79.7098519,201.5,201.39,6.21444161]
[1759041712659,79.7098519,201.5,201.39,0.65891507]
[1759041713161,7.56,201.46,201.39,0.65891507]
[1759041713360,7.56,201.46,201.38,8.05]
[1759041715354,10.2649519,201.46,201.38,8.05]
[1759041717050,2.7049519,201.49,201.38,8.05]
[1759041719560,2.7049519,201.49,201.39,7.44]
[1759041720068,7.76,201.5,201.4,7.44]
[1759041720360,7.76,201.5,201.4,11.9065]
[1759041721560,95.2049519,201.54,201.43,7.44]
[1759041721760,7.76,201.54,201.43,7.44]
[1759041722267,12.2234,201.54,201.43,7.44]
[1759041722563,1.73371298,201.53,201.44,1.73371298]
[1759041723464,12.2239,201.52,201.43,9.17371298]
[1759041724157,12.2243,201.5,201.43,7.44]
[1759041724656,7.76,201.5,201.43,7.44]
[1759041733076,12.2244,201.5,201.43,7.44]
[1759041733476,12.2244,201.5,201.38,69.4857]
[1759041733477,1.73371298,201.47,201.4,7.91]
[1759041733768,7.95,201.46,201.4,7.91]
[1759041734371,7.95,201.46,201.37,134.14371298]
[1759041735675,4.4654,201.45,201.37,134.14371298]
[1759041736076,4.4654,201.45,201.37,132.41]
[1759041736278,4.4654,201.45,201.37,134.14371298]
[1759041736574,4.4654,201.45,201.37,132.41]
[1759041736575,6.19911298,201.45,201.37,132.41]
[1759041736776,4.4658,201.44,201.37,132.41]
[1759041736974,12.4158,201.44,201.37,132.41]
[1759041737782,7.95,201.42,201.37,132.41]
[1759041737976,6.19971298,201.43,201.37,132.41]
[1759041738182,14.14971298,201.43,201.37,132.41]
[1759041738378,14.14971298,201.43,201.37,7.91]
[1759041740479,4.4662,201.42,201.37,7.91]
[1759041740678,7.95,201.41,201.37,7.91]
[1759041741277,7.95,201.39,201.31,125.71371298]
[1759041741580,1.73371298,201.41,201.32,7.91]
[1759041741882,4.4665,201.41,201.32,12.378]
[1759041742073,6.20021298,201.41,201.33,7.91]
[1759041743082,4.4667,201.39,201.33,7.91]
[1759041743389,1.73371298,201.37,201.33,7.91]
[1759041743582,9.87371298,201.37,201.33,7.91]
[1759041743784,8.14,201.37,201.33,7.91]
[1759041744382,1.73371298,201.39,201.33,8.04]
[1759041744583,8.14,201.4,201.33,8.04]
[1759041745489,4.466,201.42,201.35,4.4674]
[1759041745689,3.64860051,201.41,201.36,8.04]
[1759041745892,1.73371298,201.43,201.36,8.04]
[1759041746083,3.64837382,201.42,201.36,8.04]
[1759041746283,3.64837382,201.41,201.36,8.04]
[1759041746489,8.14,201.44,201.34,71.23271298]
[1759041746782,1.73371298,201.48,201.39,1.73371298]
[1759041746988,3.65038696,201.47,201.4,8.04]
[1759041747191,3.65038696,201.46,201.4,8.04]
[1759041747387,3.65038696,201.45,201.4,8.04]
[1759041747585,1.73371298,201.48,201.41,4.4661]
[1759041747780,3.65442232,201.47,201.41,4.4661]
[1759041748091,3.65442232,201.46,201.41,4.4661]
[1759041748387,3.65442232,201.45,201.42,8.04]
[1759041748593,3.65442232,201.44,201.42,8.04]
[1759041748891,8.14,201.49,201.43,8.04]
[1759041749093,3.65878447,201.48,201.42,8.04]
[1759041749299,3.65878447,201.47,201.38,123.7268]
[1759041749490,3.65878447,201.46,201.39,8.04]
[1759041749691,3.65878447,201.45,201.39,8.04]
[1759041749891,3.65878447,201.44,201.39,1.73371298]
[1759041750097,3.66852586,201.43,201.4,8.04]
[1759041750294,1.73371298,201.48,201.4,8.04]
[1759041750492,3.66902266,201.47,201.4,8.04]
[1759041750700,3.66902266,201.46,201.4,12.5063]
[1759041750900,3.66902266,201.45,201.4,12.5063]
[1759041751194,3.66902266,201.44,201.42,8.04]
[1759041751393,3.66902266,201.43,201.42,8.04]
[1759041752699,3.66902266,201.43,201.4,8.04]
[1759041752900,14.33881298,201.47,201.4,8.04]
[1759041753191,9.87371298,201.47,201.4,8.04]
[1759041753398,8.14,201.44,201.38,111.22]
[1759041754698,69.4518,201.48,201.38,120.99371298]
[1759041754699,4.465,201.47,201.38,120.99371298]
[1759041755094,4.465,201.47,201.39,4.4665]
[1759041756098,4.465,201.47,201.4,8.04]
[1759041757002,8.14,201.48,201.41,8.04]
[1759041757198,8.14,201.48,201.41,13.56446106]
[1759041757601,8.14,201.48,201.41,8.04]
[1759041759403,12.6049,201.48,201.41,8.04]
[1759041760098,4.4651,201.47,201.41,8.04]
[1759041760297,6.19881298,201.47,201.41,8.04]
[1759041762900,8.14,201.48,201.41,8.04]
[1759041763101,8.14,201.5,201.43,8.04]
[1759041764698,12.6044,201.5,201.43,8.04]
[1759041766205,4.4646,201.49,201.43,8.04]
[1759041766801,8.14,201.48,201.44,4.16076814]
[1759041766999,8.14,201.48,201.44,12.20076814]
[1759041771706,8.14,201.48,201.45,12.20076814]
[1759041773010,8.14,201.52,201.45,12.20076814]
[1759041773211,9.87371298,201.52,201.46,4.16076814]
[1759041773403,8.14,201.52,201.46,4.16076814]
[1759041773604,9.18371298,201.51,201.47,7.48]
[1759041774306,7.45,201.5,201.47,7.48]
[1759041778112,1.73371298,201.51,201.47,7.48]
[1759041778310,9.18371298,201.53,201.48,7.48]
[1759041778512,9.18371298,201.53,201.47,8.62556814]
[1759041778814,7.45,201.53,201.48,7.48]
[1759041779113,7.45,201.53,201.47,8.62556814]
[1759041779316,11.9136,201.53,201.47,11.64076814]
[1759041780416,7.45,201.53,201.47,11.64076814]
[1759041780917,9.18371298,201.53,201.47,11.64076814]
[1759041781616,9.18371298,201.53,201.47,16.10556814]
[1759041782605,7.45,201.5,201.46,4.16076814]
[1759041782810,7.45,201.48,201.46,4.16076814]
[1759041783712,7.45,201.48,201.45,4.16076814]
[1759041784116,7.45,201.48,201.45,11.64076814]
[1759041784417,7.45,201.48,201.46,4.16076814]
[1759041786522,7.45,201.48,201.46,8.62576814]
[1759041789221,7.45,201.48,201.47,4.16076814]
[1759041791215,7.34,201.53,201.46,7.62]
[1759041791419,62.383,201.56,201.48,4.16784612]
[1759041791724,7.34,201.55,201.48,4.16784612]
[1759041791925,7.34,201.55,201.47,7.62]
[1759041791926,7.34,201.57,201.5,4.4641]
[1759041792823,7.34,201.57,201.51,4.4639]
[1759041793731,11.8029,201.57,201.49,11.78784612]
[1759041794025,10.04944663,201.56,201.49,4.16784612]
[1759041794927,10.04944663,201.56,201.48,8.63234612]
[1759041795634,14.51244663,201.56,201.48,8.63234612]
[1759041798533,7.34,201.54,201.48,8.63234612]
[1759041800236,7.34,201.54,201.49,4.4643]
[1759041800533,7.34,201.55,201.49,4.4643]
[1759041800832,7.34,201.55,201.49,8.63214612]
[1759041801933,7.34,201.55,201.47,4.16784612]
[1759041802529,7.34,201.52,201.47,4.16784612]
[1759041802933,2.70944663,201.53,201.47,4.16784612]
[1759041803325,7.52,201.52,201.47,4.16784612]
[1759041803530,7.52,201.52,201.47,4.17222433]
[1759041803729,2.70944663,201.53,201.47,4.17222433]
[1759041804136,7.52,201.52,201.47,4.17222433]
[1759041804432,7.52,201.52,201.48,4.17222433]
[1759041805030,2.70944663,201.53,201.47,4.17222433]
[1759041805232,7.52,201.52,201.47,4.17222433]
[1759041805437,2.70944663,201.53,201.47,11.90222433]
[1759041806131,7.52,201.52,201.47,11.90222433]
[1759041806435,2.70944663,201.53,201.47,11.90222433]
[1759041806738,7.52,201.53,201.48,4.17222433]
[1759041806933,7.52,201.53,201.49,7.73]
[1759041807434,7.52,201.53,201.49,4.17222433]
[1759041807632,7.52,201.53,201.5,7.73]
[1759041815039,7.52,201.64,201.53,7.73]
[1759041815239,7.52,201.64,201.56,4.16620916]
[1759041815549,2.70944663,201.65,201.55,11.89620916]
[1759041815941,7.52,201.64,201.55,11.89620916]
[1759041816141,7.52,201.64,201.55,7.73]
[1759041816544,4.4618,201.62,201.55,7.73]
[1759041816734,4.4618,201.62,201.55,11.89620916]
[1759041816735,11.9818,201.62,201.55,11.89620916]
[1759041818045,4.4612,201.64,201.56,7.73]
[1759041819349,4.4612,201.64,201.56,12.1929]
[1759041820050,4.4612,201.64,201.57,7.73]
[1759041820246,4.4615,201.63,201.57,7.73]
[1759041820443,7.52,201.62,201.53,7.73]
[1759041821550,4.4622,201.6,201.53,7.73]
[1759041822650,4.4622,201.6,201.54,7.73]
[1759041824554,7.52,201.59,201.54,7.73]
[1759041824860,7.52,201.58,201.54,7.73]
[1759041825758,7.52,201.58,201.52,7.73]
[1759041825959,4.4619,201.61,201.52,16.35990916]
[1759041826152,11.9819,201.61,201.52,16.35990916]
[1759041826349,11.9819,201.61,201.53,7.73]
[1759041829167,7.52,201.61,201.53,7.73]
[1759041830567,4.4624,201.59,201.53,7.73]
[1759041831366,11.9819,201.61,201.53,7.73]
[1759041836165,4.4622,201.6,201.53,7.73]
[1759041838173,4.4624,201.59,201.53,7.73]
[1759041838374,12.3024,201.59,201.53,7.73]
[1759041847381,7.84,201.63,201.55,7.95]
[1759041847776,7.84,201.63,201.57,7.95]
[1759041847976,1.73236323,201.66,201.56,1.73236323]
[1759041847977,9.57236323,201.66,201.59,7.95]
[1759041848676,12.3008,201.66,201.59,7.95]
[1759041863791,4.4611,201.65,201.59,7.95]
[1759041863983,6.19346323,201.65,201.59,7.95]
[1759041864189,7.62,201.64,201.59,7.95]
[1759041864390,6.19346323,201.65,201.59,7.95]
[1759041864695,7.62,201.64,201.58,9.44236323]
[1759041870092,4.4614,201.63,201.58,7.71]
[1759041870290,4.4614,201.63,201.57,4.15808655]
[1759041870291,1.73236323,201.63,201.55,13.60044978]
[1759041870796,7.62,201.62,201.55,13.60044978]
[1759041871594,4.462,201.61,201.55,13.60044978]
[1759041876099,4.462,201.61,201.56,4.15808655]
[1759041876303,7.62,201.6,201.57,7.71]
[1759041878099,7.62,201.6,201.56,4.15808655]
[1759041878100,4.462,201.61,201.56,4.15808655]
[1759041878299,7.62,201.6,201.56,4.15808655]
[1759041878494,4.462,201.61,201.56,4.15808655]
[1759041878900,4.462,201.61,201.56,11.86808655]
[1759041879101,7.62,201.6,201.56,11.86808655]
[1759041879606,7.62,201.6,201.57,7.71]
[1759041879814,4.462,201.61,201.57,7.71]
[1759041880003,1.73236323,201.63,201.57,7.71]
[1759041880202,7.62,201.62,201.57,7.71]
[1759041880504,1.73236323,201.63,201.57,7.71]
[1759041880709,7.62,201.62,201.56,4.15808655]
[1759041881408,1.73236323,201.61,201.56,4.15808655]
[1759041881606,4.4624,201.59,201.56,4.15808655]
[1759041881804,7.62,201.58,201.54,1.73236323]
[1759041882010,7.62,201.58,201.51,5.55494555]
[1759041882313,7.62,201.58,201.5,7.71]
[1759041883712,4.4631,201.56,201.5,7.71]
[1759041887307,12.0831,201.56,201.5,7.71]
[1759041889714,4.4633,201.55,201.5,7.71]
[1759041889912,7.62,201.56,201.5,7.71]
[1759041891706,4.4635,201.54,201.49,7.71]
[1759041891909,12.0835,201.54,201.49,7.71]
[1759041892504,12.0835,201.54,201.48,1.73236323]
[1759041892704,12.0835,201.54,201.49,7.71]
[1759041892910,4.4635,201.54,201.49,7.71]
[1759041893309,4.4635,201.54,201.49,7.94]
[1759041893811,4.4635,201.54,201.48,1.73236323]
[1759041894009,4.4635,201.54,201.49,7.94]
[1759041894507,4.4635,201.54,201.48,1.73236323]
[1759041894709,4.4635,201.54,201.49,7.94]
[1759041894909,4.4635,201.54,201.48,1.73236323]
[1759041895110,4.4635,201.54,201.49,7.94]
[1759041895613,4.4635,201.54,201.48,1.73236323]
[1759041896015,4.4635,201.54,201.49,7.94]
[1759041896512,4.4635,201.54,201.48,1.73236323]
[1759041897217,8.08,201.53,201.48,1.73236323]
[1759041897618,8.08,201.53,201.49,7.94]
[1759041897819,8.08,201.53,201.48,1.73236323]
[1759041898017,12.5437,201.53,201.49,7.94]
[1759041898323,12.5437,201.53,201.48,1.73236323]
[1759041899018,12.5437,201.53,201.49,7.94]
[1759041899219,12.5437,201.53,201.48,1.73236323]
[1759041899626,12.5437,201.53,201.49,7.94]
[1759041899821,12.5437,201.53,201.48,1.73236323]
[1759041900220,12.5437,201.53,201.49,7.94]
[1759041900626,12.5437,201.53,201.48,1.73236323]
[1759041900827,12.5437,201.53,201.49,7.94]
[1759041901321,8.08,201.52,201.49,7.94]
[1759041901527,8.08,201.58,201.49,7.94]
[1759041901729,8.08,201.58,201.5,1.73236323]
[1759041901924,8.08,201.58,201.51,7.94]
[1759041902518,8.08,201.56,201.47,1.73236323]
[1759041902726,8.08,201.56,201.48,7.94]
[1759041903622,4.4637,201.53,201.47,1.73236323]
[1759041903824,4.4637,201.53,201.48,7.94]
[1759041904519,4.4637,201.53,201.47,1.73236323]
[1759041904724,4.4631,201.56,201.51,1.73236323]
[1759041904925,8.08,201.59,201.53,1.73236323]
[1759041905125,8.08,201.59,201.54,7.94]
[1759041905326,12.5424,201.59,201.54,7.94]
[1759041906027,12.5424,201.59,201.53,1.73236323]
[1759041906224,4.4619,201.61,201.54,7.94]
[1759041907032,8.08,201.62,201.57,1.73236323]
[1759041907227,8.08,201.62,201.58,7.94]
[1759041907422,8.08,201.62,201.57,1.73236323]
[1759041907624,8.08,201.62,201.58,7.94]
[1759041908122,8.08,201.62,201.57,1.73236323]
[1759041908331,8.08,201.62,201.58,7.94]
[1759041908724,8.08,201.62,201.54,2.70535536]
[1759041908725,8.08,201.62,201.56,7.94]
[1759041909034,8.08,201.6,201.52,7.94]
[1759041909226,10.78535536,201.6,201.52,7.94]
[1759041909826,7.97,201.55,201.49,7.91]
[1759041916344,69.4208,201.57,201.45,7.91]
[1759041916345,7.97,201.53,201.45,7.91]
[1759041917436,4.464,201.52,201.45,7.91]
[1759041917738,4.464,201.52,201.45,12.3752]
[1759041918733,4.464,201.52,201.46,7.91]
[1759041918939,7.97,201.53,201.47,7.91]
[1759041920036,12.4337,201.53,201.47,7.91]
[1759041922239,7.97,201.51,201.44,8.57014278]
[1759041923635,12.4342,201.51,201.44,8.57014278]
[1759041924935,12.4342,201.51,201.44,0.66014278]
[1759041924936,7.97,201.51,201.44,0.66014278]
[1759041925136,7.4,201.49,201.41,7.82]
[1759041926543,11.8647,201.49,201.41,7.82]
[1759041927143,4.4649,201.48,201.41,7.82]
[1759041928341,7.4,201.49,201.41,7.82]
[1759041928342,4.4651,201.47,201.41,7.82]
[1759041929443,11.8651,201.47,201.41,7.82]
[1759041929836,4.4653,201.46,201.41,7.82]
[1759041930037,7.4,201.47,201.38,7.82]
[1759041931544,4.4658,201.44,201.38,7.82]
[1759041931743,11.8658,201.44,201.38,7.82]
[1759041934750,4.466,201.43,201.38,7.82]
[1759041934949,7.4,201.42,201.38,7.82]
[1759041935243,7.4,201.42,201.37,7.82]
[1759041935438,7.4,201.42,201.36,4.4673]
[1759041935850,7.4,201.42,201.37,7.82]
[1759041936050,7.4,201.42,201.36,4.4673]
[1759041936452,7.4,201.47,201.36,2.70535536]
[1759041936646,4.4652,201.46,201.38,7.82]
[1759041937646,7.4,201.47,201.4,7.82]
[1759041938550,7.4,201.47,201.4,12.2863]
[1759041938752,7.4,201.47,201.41,7.82]
[1759041945157,7.4,201.47,201.42,7.82]
[1759041946960,7.4,201.47,201.41,4.4661]
[1759041947156,4.4643,201.5,201.43,4.4656]
[1759041947459,4.4643,201.5,201.44,7.82]
[1759041952165,4.4643,201.5,201.44,12.2855]
[1759041952369,7.4,201.51,201.44,12.2855]
[1759041958177,7.4,201.51,201.45,7.41]
[1759041959376,11.8642,201.51,201.45,7.41]
[1759041959970,4.4644,201.5,201.45,7.41]
[1759041960371,7.93,201.49,201.45,7.41]
[1759041960882,7.93,201.48,201.42,11.876]
[1759041961372,7.93,201.5,201.42,7.41]
[1759041961579,4.4648,201.48,201.42,7.41]
[1759041961878,7.93,201.47,201.42,7.41]
[1759041962078,4.4648,201.48,201.42,7.41]
[1759041963378,7.93,201.47,201.41,7.41]
[1759041969578,4.4644,201.5,201.41,7.76]
[1759041969780,11.8644,201.5,201.41,7.76]
[1759041970670,11.8644,201.5,201.44,7.76]
[1759041970878,4.4646,201.49,201.44,7.76]
[1759041971077,1.73382923,201.49,201.4,5.55494555]
[1759041971276,4.4653,201.46,201.41,7.76]
[1759041971475,1.73382923,201.47,201.41,7.76]
[1759041971680,7.4,201.44,201.38,13.31494555]
[1759041972573,11.8657,201.44,201.38,13.31494555]
[1759041973283,11.8657,201.44,201.38,17.78174555]
[1759041975478,1.73382923,201.45,201.38,17.78174555]
[1759041975479,7.4,201.45,201.38,5.55494555]
[1759041975692,7.4,201.45,201.4,13.31494555]
[1759041975982,7.4,201.48,201.41,7.76]
[1759041976575,7.4,201.48,201.41,12.2261]
[1759041977377,7.4,201.48,201.42,4.4659]
[1759041977982,7.4,201.48,201.43,7.76]
[1759041978487,7.4,201.48,201.42,4.4659]
[1759041978682,7.4,201.48,201.43,7.76]
[1759041978882,7.4,201.48,201.42,4.4659]
[1759041979079,4.4648,201.48,201.43,7.76]
[1759041979281,7.4,201.48,201.42,7.76]
[1759041980789,7.4,201.46,201.39,13.31494555]
[1759041980977,7.4,201.44,201.39,13.31494555]
[1759041981178,1.73382923,201.45,201.39,7.76]
[1759041981384,7.4,201.44,201.39,5.55494555]
[1759041981793,6.19922923,201.45,201.39,5.55494555]
[1759041981985,7.4,201.44,201.39,5.55494555]
[1759041982286,7.4,201.44,201.38,5.55494555]
[1759041983390,11.8657,201.44,201.38,5.55494555]
[1759041985791,11.8657,201.44,201.37,12.227]
[1759041985792,11.8657,201.44,201.37,17.78194555]
[1759041985988,7.84,201.43,201.37,17.78194555]
[1759041988083,7.84,201.43,201.38,7.44]
[1759041988288,7.84,201.43,201.37,11.75577478]
[1759041988690,7.84,201.43,201.38,7.44]
[1759041989188,7.84,201.4,201.35,5.55494555]
[1759041989380,7.84,201.38,201.35,5.55494555]
[1759041989584,7.84,201.38,201.32,12.99494555]
[1759041989782,12.3071,201.38,201.32,7.44]
[1759041991294,4.4673,201.37,201.32,7.44]
[1759041991493,7.84,201.36,201.32,7.44]
[1759041992394,6.20112923,201.37,201.32,7.44]
[1759041992694,7.84,201.35,201.29,7.44]
[1759041992888,9.57382923,201.35,201.29,7.44]
[1759041993990,7.84,201.33,201.29,7.44]
[1759041994198,7.84,201.32,201.26,128.98]
[1759041994393,7.84,201.3,201.26,7.44]
[1759041995086,1.73382923,201.31,201.26,7.44]
[1759041995289,7.84,201.3,201.26,7.44]